bitfinex/quotes_BTCUSD_20251117
["timestamp","ask_amount","ask_price","bid_price","bid_amount"]
[1763354777573,0.56271351,95492.0,95491.0,0.08047851]
[1763354777778,0.56271351,95492.0,95491.0,0.002]
[1763354779502,0.57915216,95492.0,95491.0,0.002]
[1763354779732,0.56271351,95492.0,95491.0,0.002]
[1763354780753,0.47875351,95492.0,95491.0,0.002]
[1763354781967,0.39479351,95492.0,95491.0,0.002]
[1763354782573,0.41123335,95492.0,95491.0,0.002]
[1763354785538,0.57915335,95492.0,95491.0,0.002]
[1763354789810,0.37166335,95492.0,95491.0,0.002]
[1763354789954,0.38729335,95492.0,95491.0,0.002]
[1763354790168,0.41003335,95492.0,95491.0,0.002]
[1763354790356,0.39359351,95492.0,95491.0,0.002]
[1763354790755,0.39359351,95492.0,95491.0,0.102]
[1763354791478,0.39359351,95492.0,95491.0,0.103]
[1763354792079,0.35522351,95492.0,95491.0,0.103]
[1763354793724,0.37166412,95492.0,95491.0,0.103]
[1763354794941,0.37166412,95492.0,95491.0,0.14641874]
[1763354794942,0.04866412,95492.0,95491.0,0.14641874]
[1763354795141,0.01717155,95492.0,95491.0,0.14641874]
[1763354795528,0.08469094,95492.0,95491.0,0.14641874]
[1763354800612,0.08469094,95492.0,95491.0,0.29571874]
[1763354801030,0.00073094,95492.0,95491.0,0.29571874]
[1763354805774,0.08469094,95492.0,95491.0,0.29571874]
[1763354806885,0.08469094,95492.0,95491.0,0.29471874]
[1763354807094,0.08469094,95492.0,95491.0,0.29571874]
[1763354807847,0.08469094,95492.0,95491.0,0.29671874]
[1763354821522,0.44746094,95492.0,95491.0,0.104]
[1763354821698,0.36350094,95492.0,95491.0,0.004]
[1763354821894,0.32373094,95492.0,95491.0,0.004]
[1763354822121,0.0322203,95492.0,95491.0,0.04741874]
[1763354822300,0.00073094,95492.0,95491.0,0.04641874]
[1763354822703,0.00073094,95492.0,95491.0,0.04741874]
[1763354822901,0.00073094,95492.0,95491.0,0.04541874]
[1763354823085,0.00073094,95492.0,95491.0,0.14541874]
[1763354823289,0.00073094,95492.0,95491.0,0.14741874]
[1763354823505,0.01663094,95492.0,95491.0,0.104]
[1763354823713,0.04050094,95492.0,95491.0,0.103]
[1763354823911,0.04050094,95492.0,95491.0,0.003]
[1763354824283,0.00073094,95492.0,95491.0,0.004]
[1763354824907,0.00073094,95492.0,95491.0,0.104]
[1763354825114,0.00073094,95492.0,95491.0,0.103]
[1763354825340,0.00073094,95492.0,95491.0,0.102]
[1763354825500,0.08469094,95492.0,95491.0,0.103]
[1763354825926,0.08469094,95492.0,95491.0,0.102]
[1763354826341,0.08469094,95492.0,95491.0,0.103]
[1763354826709,0.08469094,95492.0,95491.0,0.102]
[1763354827056,0.00073094,95492.0,95491.0,0.102]
[1763354828820,9.924e-05,95492.0,95491.0,0.14541874]
[1763354830065,9.924e-05,95492.0,95491.0,0.14641874]
[1763354830242,9.924e-05,95492.0,95491.0,0.14741874]
[1763354835625,0.08405924,95492.0,95491.0,0.14741874]
[1763354840411,9.924e-05,95492.0,95491.0,0.14741874]
[1763354841914,9.924e-05,95492.0,95491.0,0.104]
[1763354841915,0.01623924,95492.0,95491.0,0.104]
[1763354842146,0.03934924,95492.0,95491.0,0.104]
[1763354842360,0.05163924,95492.0,95491.0,0.004]
[1763354842957,0.05163924,95492.0,95491.0,0.003]
[1763354843156,0.05163924,95492.0,95491.0,0.002]
[1763354845491,0.54255924,95492.0,95491.0,0.002]
[1763354846342,0.45859924,95492.0,95491.0,0.002]
[1763354846516,0.37463924,95492.0,95491.0,0.002]
[1763354847969,0.35152924,95492.0,95491.0,0.002]
[1763354848297,0.37463924,95492.0,95491.0,0.002]
[1763354855517,0.54255924,95492.0,95491.0,0.002]
[1763354856163,0.54219135,95492.0,95491.0,0.002]
[1763354857943,0.45823135,95492.0,95491.0,0.002]
[1763354859895,0.37427135,95492.0,95491.0,0.002]
[1763354865540,0.54219135,95492.0,95491.0,0.002]
[1763354867595,0.55863395,95492.0,95491.0,0.002]
[1763354868017,0.45823135,95492.0,95491.0,0.002]
[1763354868793,0.05127135,95492.0,95491.0,0.002]
[1763354868994,0.01229,95492.0,95491.0,0.002]
[1763354869983,0.02782,95492.0,95491.0,0.002]
[1763354870406,0.05083,95492.0,95491.0,0.002]
[1763354870783,0.06727142,95492.0,95491.0,0.002]
[1763354875439,0.23519142,95492.0,95491.0,0.002]
[1763354876376,0.15123142,95492.0,95491.0,0.002]
[1763354876577,0.06727142,95492.0,95491.0,0.002]
[1763354881433,0.05083,95492.0,95491.0,0.002]
[1763354881984,0.07040288,95492.0,95491.0,0.002]
[1763354882404,0.05083,95492.0,95491.0,0.002]
[1763354884649,0.06727421,95492.0,95491.0,0.002]
[1763354885450,0.55819421,95492.0,95491.0,0.002]
[1763354887086,0.47423421,95492.0,95491.0,0.002]
[1763354887259,0.55819421,95492.0,95491.0,0.002]
[1763354887462,0.47423421,95492.0,95491.0,0.002]
[1763354887664,0.39027421,95492.0,95491.0,0.002]
[1763354895373,0.37383,95492.0,95491.0,0.002]
[1763354895573,0.54175,95492.0,95491.0,0.002]
[1763354895974,0.45779,95492.0,95491.0,0.002]
[1763354898384,0.37383,95492.0,95491.0,0.002]
[1763354905262,0.39341006,95492.0,95491.0,0.002]
[1763354905441,0.56133006,95492.0,95491.0,0.002]
[1763354906303,0.54175,95492.0,95491.0,0.002]
[1763354910317,0.37383,95492.0,95491.0,0.002]
[1763354910490,0.02782,95492.0,95491.0,0.002]
[1763354910693,0.01229,95492.0,95491.0,0.002]
[1763354911131,0.02748,95492.0,95491.0,0.002]
[1763354911337,0.05197,95492.0,95491.0,0.002]
[1763354912229,0.06841337,95492.0,95491.0,0.002]
[1763354915463,0.55933337,95492.0,95491.0,0.002]
[1763354916179,0.52667517,95492.0,95491.0,0.002]
[1763354916382,0.39141337,95492.0,95491.0,0.002]
[1763354916741,0.4109942,95492.0,95491.0,0.002]
[1763354921994,0.39141337,95492.0,95491.0,0.002]
[1763354922832,0.37497,95492.0,95491.0,0.002]
[1763354925435,0.54289,95492.0,95491.0,0.002]
[1763354925938,0.56245496,95492.0,95491.0,0.002]
[1763354930063,0.47849493,95492.0,95491.0,0.002]
[1763354930857,0.47849559,95492.0,95491.0,0.002]
[1763354932108,0.39453559,95492.0,95491.0,0.002]
[1763354932727,0.43399356,95492.0,95491.0,0.002]
[1763354934284,0.45653413,95492.0,95491.0,0.002]
[1763354935109,0.41707616,95492.0,95491.0,0.002]
[1763354935521,0.58499616,95492.0,95491.0,0.002]
[1763354936635,0.60144216,95492.0,95491.0,0.002]
[1763354936805,0.58499616,95492.0,95491.0,0.002]
[1763354938215,0.50103616,95492.0,95491.0,0.002]
[1763354938633,0.41707616,95492.0,95491.0,0.002]
[1763354939842,0.43352224,95492.0,95491.0,0.002]
[1763354941098,0.323,95491.0,95474.0,0.1]
[1763354941327,0.45090931,95475.0,95474.0,0.1]
[1763354941712,0.50710422,95475.0,95474.0,0.1]
[1763354943086,0.40729491,95475.0,95474.0,0.1]
[1763354943747,0.41788853,95475.0,95474.0,0.1]
[1763354945471,0.58588853,95475.0,95474.0,0.1]
[1763354946869,0.323,95474.0,95468.0,0.1]
[1763354947023,0.34769,95474.0,95468.0,0.1]
[1763354947229,0.0281,95469.0,95468.0,0.1]
[1763354947640,0.05279,95469.0,95468.0,0.1]
[1763354948626,0.08429686,95469.0,95468.0,0.1]
[1763354950269,0.42374413,95469.0,95468.0,0.1]
[1763354950475,0.40729686,95469.0,95468.0,0.1]
[1763354953051,0.323,95468.0,95460.0,0.1]
[1763354953262,0.09980931,95461.0,95460.0,0.1]
[1763354953459,0.43922931,95461.0,95460.0,0.1]
[1763354953677,0.46391931,95461.0,95460.0,0.1]
[1763354953900,0.49542891,95461.0,95460.0,0.1]
[1763354954513,0.49542891,95461.0,95460.0,0.10013264]
[1763354955440,0.66342891,95461.0,95460.0,0.10013264]
[1763354957042,0.57942891,95461.0,95460.0,0.10013264]
[1763354957687,0.49542891,95461.0,95460.0,0.10013264]
[1763354958062,0.49542891,95461.0,95460.0,0.00013264]
[1763354958463,0.51499347,95461.0,95460.0,0.00013264]
[1763354965407,0.68299347,95461.0,95460.0,0.00013264]
[1763354967497,0.51499347,95461.0,95460.0,0.00013264]
[1763354967776,0.0726196,95461.0,95460.0,0.00013264]
[1763354970613,0.41206932,95461.0,95460.0,0.00013264]
[1763354975391,0.49606932,95461.0,95460.0,0.00013264]
[1763354975614,0.58006932,95461.0,95460.0,0.00013264]
[1763354977052,0.41206932,95461.0,95460.0,0.00013264]
[1763354977460,0.04795932,95461.0,95460.0,0.00013264]
[1763354977616,0.0315096,95461.0,95460.0,0.10013264]
[1763354978777,0.0315096,95461.0,95460.0,0.20113264]
[1763354978981,0.0315096,95461.0,95460.0,0.20213264]
[1763354979348,0.0115,95471.0,95460.0,0.20213264]
[1763354979527,0.27573169,95470.0,95463.0,0.09980931]
[1763354979729,0.05584945,95470.0,95460.0,0.10213264]
[1763354979986,0.34735,95469.0,95460.0,0.10213264]
[1763354980169,0.34735,95469.0,95460.0,0.10113264]
[1763354980372,0.0115,95461.0,95460.0,0.10113264]
[1763354980548,0.323,95469.0,95460.0,0.10113264]
[1763354980549,0.323,95469.0,95460.0,0.10013264]
[1763354980938,0.01644709,95465.0,95460.0,0.10013264]
[1763354981590,0.01644709,95465.0,95463.0,0.1]
[1763354981952,0.04051,95464.0,95463.0,0.1]
[1763354982137,0.072011,95464.0,95463.0,0.1]
[1763354982336,0.047661,95464.0,95463.0,0.1]
[1763354983071,0.031501,95464.0,95463.0,0.1]
[1763354984477,0.031501,95464.0,95463.0,0.101]
[1763354985093,0.031501,95464.0,95463.0,0.102]
[1763354985571,0.522501,95464.0,95463.0,0.102]
[1763354987162,0.438501,95464.0,95463.0,0.102]
[1763354987359,0.354501,95464.0,95463.0,0.102]
[1763354988682,0.354501,95464.0,95463.0,0.101]
[1763354990271,0.354501,95464.0,95463.0,0.1]
[1763354995692,0.522501,95464.0,95463.0,0.1]
[1763354996796,0.438501,95464.0,95463.0,0.1]
[1763354998580,0.354501,95464.0,95463.0,0.1]
[1763354999380,0.323,95464.0,95463.0,0.1]
[1763355001001,0.03149819,95466.0,95464.0,0.04341874]
[1763355001204,0.01644542,95477.0,95466.0,0.04341874]
[1763355001540,0.03149627,95488.0,95467.0,0.24423224]
[1763355001861,0.323,95489.0,95470.0,0.24423224]
[1763355002091,0.03149627,95488.0,95470.0,0.24423224]
[1763355002454,0.03149627,95488.0,95472.0,0.1]
[1763355004486,0.03149627,95488.0,95480.0,0.09980931]
[1763355004693,0.01644506,95485.0,95480.0,0.09980931]
[1763355005495,0.491,95484.0,95480.0,0.09980931]
[1763355006759,0.35449402,95483.0,95480.0,0.09980931]
[1763355007977,0.03149402,95483.0,95480.0,0.09980931]
[1763355008182,0.01644506,95485.0,95480.0,0.09980931]
[1763355008378,0.01644506,95485.0,95481.0,0.04341874]
[1763355008587,0.01229,95507.0,95481.0,0.04341874]
[1763355008826,0.01229,95507.0,95495.0,0.09980931]
[1763355009030,0.03149012,95496.0,95495.0,0.09980931]
[1763355010020,0.03153426,95496.0,95495.0,0.09980931]
[1763355011024,0.03153426,95496.0,95481.0,0.04341874]
[1763355012078,0.03153426,95496.0,95495.0,0.09980931]
[1763355014025,4.414e-05,95496.0,95495.0,0.09980931]
[1763355015440,0.08400414,95496.0,95481.0,0.04341874]
[1763355015662,0.08400414,95496.0,95495.0,0.09980931]
[1763355019046,4.414e-05,95496.0,95495.0,0.09980931]
[1763355025478,0.08400414,95496.0,95495.0,0.09980931]
[1763355027272,0.323,95495.0,95483.0,0.1493]
[1763355027500,0.01134,95487.0,95483.0,0.1493]
[1763355028779,0.01655,95484.0,95483.0,0.1493]
[1763355029029,0.01655,95484.0,95450.0,0.31226258]
[1763355029159,0.02323,95483.0,95460.0,0.16256258]
[1763355029540,0.02323,95483.0,95466.0,0.04341874]
[1763355031674,0.323,95479.0,95466.0,0.04341874]
[1763355031879,0.02323,95483.0,95466.0,0.04341874]
[1763355032095,0.01134,95467.0,95450.0,0.1497]
[1763355032304,0.01655,95466.0,95463.0,0.1]
[1763355032538,0.03978,95466.0,95459.0,0.1]
[1763355032757,0.01655,95464.0,95461.0,0.09980931]
[1763355033393,0.01655,95464.0,95461.0,0.09994195]
[1763355033627,0.01655,95464.0,95461.0,0.00013264]
[1763355033856,0.01655,95462.0,95461.0,0.00013264]
[1763355035409,0.50747,95462.0,95461.0,0.00013264]
[1763355037589,0.42351,95462.0,95461.0,0.00013264]
[1763355037889,0.36278,95462.0,95461.0,0.00013264]
[1763355038621,0.36698048,95462.0,95461.0,0.00013264]
[1763355039150,0.38342845,95462.0,95461.0,0.00013264]
[1763355041006,0.42290529,95462.0,95461.0,0.00013264]
[1763355041346,0.38342845,95462.0,95461.0,0.00013264]
[1763355042312,0.38442845,95462.0,95461.0,0.00013264]
[1763355042732,0.38342845,95462.0,95461.0,0.00013264]
[1763355042912,0.38442845,95462.0,95461.0,0.00013264]
[1763355043131,0.38542845,95462.0,95461.0,0.00013264]
[1763355045558,0.55342845,95462.0,95461.0,0.00013264]
[1763355045759,0.38542845,95462.0,95461.0,0.00013264]
[1763355048495,0.40494072,95462.0,95461.0,0.00013264]
[1763355049803,0.38849275,95462.0,95461.0,0.00013264]
[1763355052508,0.38849275,95462.0,95440.0,0.00019475]
[1763355052710,0.02809,95441.0,95440.0,0.00032744]
[1763355053171,0.05199,95441.0,95440.0,0.00032744]
[1763355053369,0.05619167,95441.0,95440.0,0.00032744]
[1763355054425,0.06664718,95441.0,95440.0,0.00032744]
[1763355055030,0.06764718,95441.0,95440.0,0.00032744]
[1763355055542,0.55864718,95441.0,95440.0,0.00032744]
[1763355055751,0.55964718,95441.0,95440.0,0.00032744]
[1763355056268,0.54919167,95441.0,95440.0,0.00032744]
[1763355057616,0.54625337,95441.0,95440.0,0.00032744]
[1763355058160,0.54525337,95441.0,95440.0,0.00032744]
[1763355058578,0.54425337,95441.0,95440.0,0.00032744]
[1763355059725,0.35235337,95441.0,95440.0,0.00032744]
[1763355060230,0.37625337,95441.0,95440.0,0.00032744]
[1763355060412,0.35235337,95441.0,95440.0,0.00032744]
[1763355060793,0.37625337,95441.0,95440.0,0.00032744]
[1763355061370,0.39582073,95441.0,95440.0,0.00032744]
[1763355061757,0.35235337,95441.0,95440.0,0.00032744]
[1763355062400,0.37192707,95441.0,95440.0,0.00032744]
[1763355063024,0.35567707,95441.0,95440.0,0.00032744]
[1763355063418,0.37212774,95441.0,95440.0,0.00032744]
[1763355065498,0.54012774,95441.0,95440.0,0.00032744]
[1763355066501,0.53122604,95441.0,95440.0,0.00032744]
[1763355067137,0.57137604,95441.0,95440.0,0.00032744]
[1763355067710,0.53122604,95441.0,95440.0,0.00032744]
[1763355069264,0.44722604,95441.0,95440.0,0.00032744]
[1763355069442,0.36322604,95441.0,95440.0,0.00032744]
[1763355070033,0.40337604,95441.0,95440.0,0.00032744]
[1763355071826,0.40342412,95441.0,95440.0,0.00032744]
[1763355072827,0.38697345,95441.0,95440.0,0.00032744]
[1763355074833,0.36307345,95441.0,95440.0,0.00032744]
[1763355075438,0.55535345,95441.0,95440.0,0.00032744]
[1763355076058,0.57180429,95441.0,95440.0,0.00032744]
[1763355077765,0.36327429,95441.0,95440.0,0.00032744]
[1763355078004,0.028176,95467.0,95440.0,0.00032744]
[1763355078169,0.01964243,95466.0,95451.0,0.09980931]
[1763355078525,0.323,95460.0,95440.0,0.00032744]
[1763355078704,0.323,95449.0,95440.0,0.00032744]
[1763355078851,0.01964243,95448.0,95441.0,0.09980931]
[1763355079224,0.01964243,95447.0,95441.0,0.09980931]
[1763355079369,0.323,95449.0,95441.0,0.09980931]
[1763355079567,0.01962084,95448.0,95441.0,0.09980931]
[1763355079762,0.323,95449.0,95441.0,0.09980931]
[1763355079983,0.0196209,95448.0,95441.0,0.09980931]
[1763355080185,0.0196209,95447.0,95441.0,0.09980931]
[1763355080404,0.323,95449.0,95441.0,0.09980931]
[1763355080591,0.03150587,95446.0,95441.0,0.09980931]
[1763355084137,0.03150587,95446.0,95440.0,0.00032744]
[1763355084495,0.03150587,95446.0,95441.0,0.09980931]
[1763355085546,0.407,95445.0,95441.0,0.09980931]
[1763355088118,0.03150587,95444.0,95441.0,0.09980931]
[1763355089778,0.03150587,95444.0,95440.0,0.00032744]
[1763355089990,0.01537,95441.0,95440.0,0.00032744]
[1763355090386,0.03926,95441.0,95440.0,0.00032744]
[1763355090643,0.07077258,95441.0,95440.0,0.00032744]
[1763355091385,0.07177258,95441.0,95440.0,0.00032744]
[1763355091594,0.07077258,95441.0,95440.0,0.00032744]
[1763355091792,0.08722372,95441.0,95440.0,0.00032744]
[1763355092221,0.07077258,95441.0,95440.0,0.00032744]
[1763355095086,0.08722374,95441.0,95440.0,0.00032744]
[1763355095482,0.57822374,95441.0,95440.0,0.00032744]
[1763355096216,0.57922374,95441.0,95440.0,0.00032744]
[1763355097230,0.58022374,95441.0,95440.0,0.00032744]
[1763355097437,0.49622374,95441.0,95440.0,0.00032744]
[1763355098744,0.46184611,95441.0,95440.0,0.00032744]
[1763355098928,0.48144712,95441.0,95440.0,0.00032744]
[1763355099241,0.45440392,95441.0,95440.0,0.00032744]
[1763355100267,0.43182475,95441.0,95440.0,0.00032744]
[1763355100443,0.45438721,95441.0,95440.0,0.00032744]
[1763355100648,0.45438721,95441.0,95420.0,0.0004]
[1763355100649,0.323,95429.0,95420.0,0.0004]
[1763355100826,0.44980931,95421.0,95420.0,0.00084249]
[1763355101263,0.47790242,95421.0,95420.0,0.00084249]
[1763355101912,0.37809311,95421.0,95420.0,0.00084249]
[1763355102724,0.37725211,95421.0,95420.0,0.00084249]
[1763355102862,0.37825211,95421.0,95420.0,0.00084249]
[1763355103510,0.37925211,95421.0,95420.0,0.00084249]
[1763355103927,0.37825211,95421.0,95420.0,0.00084249]
[1763355104218,0.35436211,95421.0,95420.0,0.00084249]
[1763355105144,0.35336211,95421.0,95420.0,0.00084249]
[1763355105488,0.53789529,95421.0,95420.0,0.00084249]
[1763355105688,0.52144211,95421.0,95420.0,0.00084249]
[1763355106118,0.00420311,95421.0,95420.0,0.00084249]
[1763355106329,0.08824311,95421.0,95420.0,0.00084249]
[1763355106531,0.08824311,95421.0,95420.0,0.04426123]
[1763355106532,0.08404,95421.0,95420.0,0.04426123]
[1763355106967,0.08404,95421.0,95420.0,0.14426123]
[1763355107183,0.03150765,95439.0,95421.0,0.04341874]
[1763355107395,0.01165,95491.0,95446.0,0.04341874]
[1763355107604,0.03149452,95484.0,95471.0,0.04341874]
[1763355108019,0.32820067,95490.0,95471.0,0.04341874]
[1763355108215,0.323,95489.0,95461.0,0.04341874]
[1763355108430,0.323,95489.0,95478.0,0.04341874]
[1763355108631,0.32820067,95490.0,95461.0,0.04341874]
[1763355108880,9.715e-05,95489.0,95461.0,0.04341874]
[1763355109059,0.32309715,95489.0,95480.0,0.09980931]
[1763355109276,0.02369,95488.0,95487.0,0.1]
[1763355109481,0.323,95487.0,95478.0,0.1]
[1763355109802,0.01512,95472.0,95471.0,0.001]
[1763355110209,0.03881,95472.0,95428.0,0.03150209]
[1763355110414,0.323,95459.0,95439.0,0.09980931]
[1763355110614,0.323,95459.0,95443.0,0.1]
[1763355110823,0.323,95459.0,95454.0,0.09980931]
[1763355111000,0.01165,95479.0,95454.0,0.09980931]
[1763355111204,0.323,95469.0,95454.0,0.09980931]
[1763355111404,0.323,95469.0,95455.0,0.04341874]
[1763355111924,0.323,95469.0,95462.0,0.1]
[1763355112568,0.01512,95463.0,95454.0,0.00044249]
[1763355112775,0.33812,95463.0,95455.0,0.001]
[1763355113175,0.33812,95463.0,95454.0,0.00044249]
[1763355113396,0.33812,95463.0,95462.0,0.001]
[1763355114064,0.01512,95463.0,95462.0,0.001]
[1763355114272,0.03881,95463.0,95462.0,0.001]
[1763355114660,0.03881,95463.0,95454.0,0.00144249]
[1763355114861,0.01512,95455.0,95454.0,0.00144249]
[1763355115361,0.03881,95455.0,95454.0,0.00144249]
[1763355115523,0.56131898,95455.0,95454.0,0.00044249]
[1763355115956,0.39331898,95455.0,95454.0,0.00044249]
[1763355118128,0.43673772,95455.0,95454.0,0.00044249]
[1763355118569,0.45623983,95455.0,95454.0,0.00044249]
[1763355118975,0.47369206,95455.0,95420.0,0.0004]
[1763355119173,0.44957931,95421.0,95420.0,0.00044636]
[1763355119590,0.47326931,95421.0,95420.0,0.00044636]
[1763355120368,0.4774725,95421.0,95420.0,0.00044636]
[1763355121639,0.52521975,95421.0,95411.0,0.002]
[1763355121949,0.02677,95412.0,95411.0,0.00210167]
[1763355122140,0.01512,95411.0,95380.0,0.0004]
[1763355122350,0.323,95400.0,95380.0,0.0004]
[1763355122548,0.323,95400.0,95390.0,0.00084095]
[1763355122549,0.02677,95391.0,95390.0,0.00084095]
[1763355123140,0.05046,95391.0,95390.0,0.00084095]
[1763355125492,0.54574459,95391.0,95390.0,0.00084095]
[1763355125842,0.323,95390.0,95380.0,0.0004]
[1763355125981,0.323,95380.0,95360.0,0.0004]
[1763355126184,0.02677,95372.0,95371.0,0.00213291]
[1763355126579,0.05046,95372.0,95371.0,0.00213291]
[1763355129588,0.05466535,95372.0,95371.0,0.00213291]
[1763355132303,0.03097535,95372.0,95371.0,0.00213291]
[1763355132508,0.04743737,95372.0,95371.0,0.00213291]
[1763355132864,0.03097535,95372.0,95371.0,0.00213291]
[1763355133017,0.05466535,95372.0,95371.0,0.00213291]
[1763355133427,0.03097535,95372.0,95371.0,0.00213291]
[1763355133642,0.01585535,95372.0,95371.0,0.00213291]
[1763355134657,0.00420535,95372.0,95371.0,0.00213291]
[1763355134858,0.27756204,95390.0,95371.0,0.00213291]
[1763355135064,0.27756204,95390.0,95382.0,0.1]
[1763355135519,0.16808,95389.0,95382.0,0.1]
[1763355135851,0.323,95388.0,95382.0,0.1]
[1763355136072,0.33945927,95388.0,95382.0,0.1]
[1763355136712,0.01535,95383.0,95382.0,0.1]
[1763355137119,0.0388,95383.0,95373.0,0.1]
[1763355137338,0.02789,95374.0,95373.0,0.1]
[1763355137546,0.01196,95374.0,95373.0,0.1]
[1763355139243,0.01196,95374.0,95373.0,0.101]
[1763355139882,0.01196,95374.0,95373.0,0.102]
[1763355140310,0.05134,95374.0,95373.0,0.102]
[1763355141370,0.02789,95374.0,95373.0,0.102]
[1763355141910,0.01196,95374.0,95373.0,0.102]
[1763355142530,0.02789,95374.0,95373.0,0.102]
[1763355145363,0.03144849,95374.0,95373.0,0.102]
[1763355145708,0.51064849,95374.0,95373.0,0.102]
[1763355147531,0.52657849,95374.0,95373.0,0.102]
[1763355148106,0.55002849,95374.0,95373.0,0.102]
[1763355151380,0.38186849,95374.0,95373.0,0.102]
[1763355153655,0.35841849,95374.0,95373.0,0.102]
[1763355153857,0.01948849,95374.0,95373.0,0.102]
[1763355154066,0.03594871,95374.0,95373.0,0.102]
[1763355155103,0.03594871,95374.0,95373.0,0.202]
[1763355155565,0.12002871,95374.0,95373.0,0.202]
[1763355155746,0.12002871,95374.0,95373.0,0.201]
[1763355155906,0.03594871,95374.0,95373.0,0.203]
[1763355156110,0.12002871,95374.0,95373.0,0.202]
[1763355156318,0.12002871,95374.0,95373.0,0.204]
[1763355157857,0.10356849,95374.0,95373.0,0.204]
[1763355161904,0.05886849,95374.0,95373.0,0.204]
[1763355162093,0.05886849,95374.0,95373.0,0.104]
[1763355162861,0.05886849,95374.0,95373.0,0.102]
[1763355163070,0.05886849,95374.0,95373.0,0.103]
[1763355163313,0.05886849,95374.0,95373.0,0.101]
[1763355163570,0.05895748,95374.0,95373.0,0.101]
[1763355164951,0.05895748,95374.0,95373.0,0.102]
[1763355164952,0.01957748,95374.0,95373.0,0.102]
[1763355165546,0.51073748,95374.0,95373.0,0.102]
[1763355165987,0.01957748,95374.0,95373.0,0.102]
[1763355166672,0.05930748,95374.0,95373.0,0.102]
[1763355166849,0.03559748,95374.0,95373.0,0.102]
[1763355167003,0.01957748,95374.0,95373.0,0.101]
[1763355167835,0.01957748,95374.0,95373.0,0.1]
[1763355168238,0.01957748,95374.0,95373.0,0.101]
[1763355168459,0.01957748,95374.0,95373.0,0.102]
[1763355169487,0.01645919,95381.0,95373.0,0.102]
[1763355169671,0.01958746,95380.0,95373.0,0.102]
[1763355169873,0.01958746,95379.0,95374.0,0.09980931]
[1763355170192,0.01958746,95378.0,95374.0,0.09980931]
[1763355170373,0.01645919,95381.0,95374.0,0.09980931]
[1763355170579,0.01958684,95380.0,95374.0,0.09980931]
[1763355170875,0.01645919,95381.0,95374.0,0.09980931]
[1763355171610,0.01645919,95381.0,95378.0,0.1]
[1763355171957,0.02371,95397.0,95378.0,0.1]
[1763355172160,0.01958531,95395.0,95378.0,0.1]
[1763355172367,0.01958531,95394.0,95379.0,0.09980931]
[1763355172567,0.01958531,95393.0,95379.0,0.09980931]
[1763355172767,0.02371,95397.0,95379.0,0.09980931]
[1763355172996,0.01958323,95395.0,95381.0,0.1]
[1763355173194,0.01958323,95394.0,95381.0,0.1]
[1763355173445,0.02371,95397.0,95391.0,0.1]
[1763355173959,0.01602,95392.0,95391.0,0.1]
[1763355175498,0.49108,95392.0,95391.0,0.1]
[1763355175698,0.49108,95392.0,95391.0,0.101]
[1763355176316,0.323,95392.0,95391.0,0.102]
[1763355180314,0.396215,95392.0,95391.0,0.002]
[1763355180497,0.36273,95392.0,95391.0,0.002]
[1763355180946,0.323,95391.0,95371.0,0.00213291]
[1763355181179,0.02787,95372.0,95371.0,0.00213291]
[1763355181630,0.05158,95372.0,95371.0,0.10213291]
[1763355182510,0.05158,95372.0,95371.0,0.10313291]
[1763355183902,0.05158,95372.0,95371.0,0.10413291]
[1763355185440,0.06804068,95372.0,95371.0,0.10413291]
[1763355185651,0.23612068,95372.0,95371.0,0.10413291]
[1763355185825,0.13562,95372.0,95371.0,0.10413291]
[1763355187833,0.05158,95372.0,95371.0,0.10413291]
[1763355188755,0.06804083,95372.0,95371.0,0.10413291]
[1763355188921,0.05158,95372.0,95371.0,0.10413291]
[1763355195548,0.54274,95372.0,95371.0,0.10413291]
[1763355196305,0.08408,95372.0,95371.0,0.10413291]
[1763355197334,0.08408,95372.0,95371.0,0.20313291]
[1763355197755,0.08408,95372.0,95371.0,0.10313291]
[1763355198161,0.08408,95372.0,95371.0,0.10413291]
[1763355198692,0.08408,95372.0,95371.0,0.20413291]
[1763355198931,0.08408,95372.0,95371.0,0.20313291]
[1763355199161,0.08408,95372.0,95371.0,0.20213291]
[1763355199365,0.08408,95372.0,95371.0,0.20313291]
[1763355199517,0.08408,95372.0,95371.0,0.20413291]
[1763355199712,0.08408,95372.0,95371.0,0.20213291]
[1763355200119,0.08408,95372.0,95371.0,0.20413291]
[1763355202215,0.01243,95379.0,95371.0,0.20413291]
[1763355202617,0.01645949,95377.0,95371.0,0.20413291]
[1763355202961,0.01243,95379.0,95371.0,0.20413291]
[1763355202962,0.01243,95379.0,95372.0,0.1]
[1763355203957,0.01243,95379.0,95372.0,0.2]
[1763355204360,0.01243,95379.0,95372.0,0.201]
[1763355205161,0.01243,95379.0,95372.0,0.202]
[1763355205591,0.323,95377.0,95372.0,0.202]
[1763355206203,0.34603,95377.0,95372.0,0.202]
[1763355206569,0.02303,95377.0,95372.0,0.2]
[1763355206766,0.02303,95377.0,95372.0,0.201]
[1763355206989,0.02303,95377.0,95372.0,0.202]
[1763355207806,0.01646,95378.0,95372.0,0.202]
[1763355208365,0.01542,95373.0,95372.0,0.202]
[1763355208600,0.01542,95373.0,95372.0,0.101]
[1763355208819,0.03845,95373.0,95372.0,0.1]
[1763355208987,0.03845,95373.0,95372.0,0.101]
[1763355209614,0.03845,95373.0,95372.0,0.1]
[1763355209959,0.03845,95373.0,95372.0,0.102]
[1763355211387,0.01542,95373.0,95372.0,0.102]
[1763355213574,0.01646,95378.0,95372.0,0.102]
[1763355214416,0.01646,95378.0,95372.0,0.101]
[1763355214838,0.01646,95378.0,95373.0,0.1]
[1763355215488,0.40708,95377.0,95373.0,0.1]
[1763355215717,0.49116,95377.0,95373.0,0.1]
[1763355216141,0.51419,95377.0,95373.0,0.1]
[1763355216369,0.01542,95374.0,95373.0,0.101]
[1763355216582,0.01542,95374.0,95373.0,0.1]
[1763355216815,0.03845,95374.0,95373.0,0.101]
[1763355217655,0.03845,95374.0,95373.0,0.102]
[1763355218500,0.03845,95374.0,95373.0,0.1]